{"text_format":"1","workbook":"xlsx","n_sheets":2,"sheets":["Summary sheet","B451 - CCC SFH"],"not_rendered":{"charts":0,"images":2,"macros":1,"external_links":0,"defined_names":46,"comments":0,"pivot_tables":0},"unopened":[],"bounds":{"document_bytes":16777216,"sheet_cells":100000,"rows_first":2000,"rows_last":500,"rows_between":2000,"halvings":0,"cell_chars":16384,"cell_head_chars":4096},"cells_cut":0,"cells_raw":0,"read":"whole","date_system":"1900"}

{"sheet":"Summary sheet","index":0,"n_rows":44,"n_cols":10,"rows_kept":44,"cut":false,"hidden":false,"merged":[[24,1,24,3],[25,1,25,3],[13,1,13,3],[16,1,16,3],[2,1,2,4],[6,1,6,3],[8,1,8,3],[10,1,10,3],[12,1,12,3],[9,1,9,3],[4,1,4,4],[11,1,11,3],[5,1,5,4],[15,1,15,4],[14,1,14,4],[7,1,7,3],[31,1,31,3],[44,1,44,4],[42,1,42,4],[43,1,43,4],[26,1,26,3],[30,1,30,3],[41,1,41,2],[38,1,38,2],[28,1,28,4],[32,1,32,3],[33,1,33,3],[27,1,27,4],[29,1,29,3],[38,9,38,11],[40,9,40,11],[35,1,35,3],[34,1,34,3],[36,1,36,4],[37,1,37,2],[40,1,40,2],[39,1,39,2],[22,1,22,3],[23,1,23,3],[19,1,19,3],[17,1,17,3],[18,1,18,3],[20,1,20,3],[21,1,21,3]]}
[]
[null,"B-203(SFH)",null,null,null,null,null,null,null,"Yes"]
[null,"Code Compliance Certificate for SFH",null,null,null,null,null,null,null,"No"]
[null,"B-203(SFH) LU:25.07.19, LR: 25.07.19, v2",null,null,null,null,null,null,null,"N/A"]
[null,null,null,null,null,null,null,null,null,"C/-"]
[null,"DETAILS"]
[null,"Building Consent Number",null,null,"BCN/2022/1531",null,null,null,null,"Residential 1"]
[null,"Project description ",null,null,"Alteration to dwelling, Installation of Masport Rangitata, Inbuilt, dry, woodburner, CAC203666",null,null,null,null,"Residential 2"]
[null,"Street address",null,null,"15A Clyde Road Riccarton",null,null,null,null,"Residential 3"]
[null,"Legal Description [Lot & DP]",null,null,"Lot 2 DP 41440",null,null,null,null,"Commercial 1"]
[null,"Year first constructed ",null,null,null,null,null,null,null,"Commercial 2"]
[null,"Current, Lawfully established use",null,null,"Housing - Installation of solid fuel heater",null,null,null,null,"Commercial 3"]
[null,"Consent issue date",null,null,"2022-03-31"]
[null,"Building level",null,null,"Residential 2"]
[]
[null,"OWNERS DETAILS",null,null,null,null,null,null,null,"Building Consent:"]
[null,"Owner's name [check details in GoGet]",null,null,"D W Dormer"]
[null,"Contact person",null,null,"Winsome Dormer",null,null,null,null,"CCBC Commercial Inspections Team"]
[null,"Mailing address",null,null,"15A Clyde Road\nChristchurch 8041",null,null,null,null,"CCBC Residential Inspections Team 1"]
[null,"Street address / registered office",null,null,"15A Clyde Road\nChristchurch 8041",null,null,null,null,"CCBC Residential Inspections Team 2"]
[null,"Email address",null,null,"winsome@indprov.co.nz"]
[null,"Landline",null,null,null,null,null,null,null,"Building Inspector"]
[null,"Mobile ",null,null,"021 325 389",null,null,null,null,"Senior Building Inspector "]
[null,"Daytime",null,null,null,null,null,null,null,"Building Consent Officer"]
[null,"After Hours",null,null,null,null,null,null,null,"Senior Building Consent Officer"]
[null,"Fax",null,null,null,null,null,null,null,"Building Control Officer (including Senior)"]
[null,"Website",null,null,null,null,null,null,null,"Code Compliance Assessor"]
[null,null,null,null,null,null,null,null,null,"Principal Building Official"]
[null,"FIRST POINT OF CONTACT ",null,null,null,null,null,null,null,"Team Leader Building Compliance"]
[null,"Name",null,null,"Gas Unlimited",null,null,null,null,"Team Leader Engineering Services"]
[null,"Contact person","Project description:","Project description:","Greg Snith",null,null,null,null,"Team Leader Inspections"]
[null,"Mailing address",null,null,"PO Box 5575 Papanui, Christchurch 8542",null,null,null,null,"Team Leader Processing"]
[null,"Phone",null,null,"03 352 3838"]
[null,"Mobile",null,null,"0274 777 200"]
[null,"Fax",null,null,null,null,null,null,null,"Housing - Installation of solid fuel heater"]
[null,"Email address",null,null,"greg@gasunlimited.co.nz",null,null,null,null,"Yes"]
[null,null,null,null,null,null,null,null,null,"N/A"]
[null,"POST DECISION FINAL TASK CHECKLIST ",null,"Yes / No / N/A","Comments"]
[null,"Have all workflows been completed in connect and final administration completed? ",null,"Yes",null,null,null,null,null,"Have all workflows been completed in connect and final administration completed? "]
[null,"Have all CCC documents been converted to PDFs?",null,"Yes"]
[null,"Have all building consent file documentation been made 'public' and 'finalised'??",null,"Yes",null,null,null,null,null,"Have all building consent file documentation been made 'public' and 'finalised'??"]
[null,"Record the TRIM reference to I232 inspection site notice in the adjacent cell",null,null,"22/523103"]
[]
[null,"ISSUED OR REFUSED DECISION - The recording of the decisions and reasons for it are recorded on the I-232 Heating Unit - Final (Sld or Liq Fuel Heater)"]

{"sheet":"B451 - CCC SFH","index":1,"n_rows":47,"n_cols":8,"rows_kept":47,"cut":false,"hidden":false,"merged":[[0,4,0,7],[1,4,1,7],[5,4,5,7],[27,4,27,7],[35,4,35,7],[11,4,11,7],[23,5,25,5],[32,4,32,5],[19,4,19,7],[22,13,22,14],[34,4,34,7],[6,6,7,6],[45,4,45,5],[29,4,31,7],[33,13,33,14],[44,8,44,9],[16,13,16,14],[17,13,17,16],[19,13,20,16],[37,4,44,5]]}
[null,null,null,null,"Code Compliance Certificate"]
[null,null,null,null,"Sections 95, Building Act 2004                           Form 7 - Building (Forms) Regulations 2004"]
[]
[null,null,null,null,"Building Consent\nNumber",{"$f":"'Summary sheet'!E7","v":"BCN/2022/1531"},"Date issued",{"$f":"TODAY()","v":"2022-04-27"}]
[]
[null,null,null,null,"The building"]
[null,null,null,null,"Street address of \nbuilding",{"$f":"'Summary sheet'!E9","v":"15A Clyde Road Riccarton"},"Location of \nbuilding within\nsite/block number"]
[null,null,null,null,"Legal desciption \nof land where \nbuilding is located ",{"$f":"'Summary sheet'!E10","v":"Lot 2 DP 41440"}]
[null,null,null,null,"Building name",null,"Level/unit number "]
[null,null,null,null,"Year first \nconstructed ",{"$f":"'Summary sheet'!E11","v":0},"Current, lawfully established use",{"$f":"'Summary sheet'!E12","v":"Housing - Installation of solid fuel heater"}]
[]
[null,null,null,null,"The owner"]
[null,null,null,null,"Name of the owner",{"$f":"'Summary sheet'!E17","v":"D W Dormer"},"Phone number"]
[null,null,null,null,"Contact person",{"$f":"'Summary sheet'!E18","v":"Winsome Dormer"},"Landline",{"$f":"'Summary sheet'!E22","v":0}]
[null,null,null,null,"Mailing address",{"$f":"'Summary sheet'!E19","v":"15A Clyde Road\nChristchurch 8041"},"Mobile",{"$f":"'Summary sheet'!E23","v":"021 325 389"}]
[null,null,null,null,"Street address/ \nregistered office",{"$f":"'Summary sheet'!E20","v":"15A Clyde Road\nChristchurch 8041"},"Daytime\nAfter hours"]
[null,null,null,null,"Email address",{"$f":"'Summary sheet'!E21","v":"winsome@indprov.co.nz"},"Fax",{"$f":"'Summary sheet'!E26","v":0}]
[null,null,null,null,null,null,"Website",{"$f":"'Summary sheet'!E27","v":0}]
[]
[null,null,null,null,"First point of contact for communications with the building consent authority:"]
[]
[null,null,null,null,"Name",{"$f":"'Summary sheet'!E30","v":"Gas Unlimited"},"Phone",{"$f":"'Summary sheet'!E33","v":"03 352 3838"}]
[null,null,null,null,"Contact person",{"$f":"'Summary sheet'!E31","v":"Greg Snith"},"Mobile",{"$f":"'Summary sheet'!E34","v":"0274 777 200"}]
[null,null,null,null,"Mailing address",{"$f":"'Summary sheet'!E32","v":"PO Box 5575 Papanui, Christchurch 8542"},"Fax",{"$f":"'Summary sheet'!E35","v":0}]
[null,null,null,null,null,null,"Email address",{"$f":"'Summary sheet'!E36","v":"greg@gasunlimited.co.nz"}]
[]
[]
[null,null,null,null,"Building work "]
[null,null,null,null,"Building consent number ",{"$f":"'Summary sheet'!E7","v":"BCN/2022/1531"}]
[null,null,null,null,{"$f":"'Summary sheet'!E8","v":"Alteration to dwelling, Installation of Masport Rangitata, Inbuilt, dry, woodburner, CAC203666"}]
[]
[]
[null,null,null,null,"Issued by: Christchurch City Council "]
[]
[null,null,null,null,"Code compliance "]
[null,null,null,null,"The Christchurch City Council is satisfied, on reasonable grounds, that the building work complies with"]
[null,null,null,null,"the building consent."]
[]
[]
[]
[]
[]
[]
[]
[]
[null,null,null,null,"On behalf of: Christchurch City Council "]
[null,null,null,null,{"$f":"TODAY()","v":"2022-04-27"}]